[Event "Titled Tuesday Blitz May 23 Late 2023"]
[White "ritanovikova"]
[Black "Liu, Casper"]
[BlackFideId "1454153"]
[WhiteElo "2176"]
[BlackElo "2221"]
[Result "0-1"]
[Round "05"]
[TimeControl "180+2"]
[Date "2023.05.23"]
[WhiteClock "0:00:09"]
[BlackClock "0:01:17"]

1. e4 {[%clk 0:02:58]}  c5 {[%clk 0:02:59]} 2. Nc3 {[%clk 0:02:58]}  g6 {[%clk 0:02:58]} 3. d3 {[%clk 0:02:59]}  Bg7 {[%clk 0:02:58]} 4. Be3 {[%clk 0:02:59]}  d6 {[%clk 0:02:59]} 5. Qd2 {[%clk 0:02:59]}  Nf6 {[%clk 0:02:56]} 6. Bh6 {[%clk 0:02:59]}  Bxh6 {[%clk 0:02:53]} 7. Qxh6 {[%clk 0:03:00]}  Qa5 {[%clk 0:02:52]} 8. Nf3 {[%clk 0:02:53]}  Nc6 {[%clk 0:02:50]} 9. Qd2 {[%clk 0:02:38]}  b5 {[%clk 0:02:47]} 10. Be2 {[%clk 0:02:36]}  b4 {[%clk 0:02:43]} 11. Nd5 {[%clk 0:02:35]}  Nxd5 {[%clk 0:02:36]} 12. exd5 {[%clk 0:02:36]}  Nb8 {[%clk 0:02:37]} 13. O-O {[%clk 0:02:35]}  Bb7 {[%clk 0:02:35]} 14. Qh6 {[%clk 0:01:45]}  Bxd5 {[%clk 0:02:33]} 15. Qg7 {[%clk 0:01:45]}  Rf8 {[%clk 0:02:34]} 16. a3 {[%clk 0:01:35]}  b3 {[%clk 0:02:26]} 17. cxb3 {[%clk 0:01:30]}  Bxb3 {[%clk 0:02:25]} 18. d4 {[%clk 0:01:29]}  cxd4 {[%clk 0:02:17]} 19. Nxd4 {[%clk 0:01:28]}  Bd5 {[%clk 0:02:09]} 20. Bb5+ {[%clk 0:01:26]}  Nd7 {[%clk 0:02:06]} 21. Rfe1 {[%clk 0:01:14]}  a6 {[%clk 0:01:35]} 22. Nc6 {[%clk 0:00:55]}  Bxc6 {[%clk 0:01:31]} 23. Bxc6 {[%clk 0:00:56]}  Rc8 {[%clk 0:01:32]} 24. Rec1 {[%clk 0:00:38]}  Qe5 {[%clk 0:01:21]} 25. Qxh7 {[%clk 0:00:35]}  Rh8 {[%clk 0:01:20]} 26. Qxh8+ {[%clk 0:00:14]}  Qxh8 {[%clk 0:01:20]} 27. b4 {[%clk 0:00:09]}  Rxc6 {[%clk 0:01:17]} 0-1


[Site "https://www.chess.com"]

[Event "Titled Tuesday Blitz May 23 Late 2023"]
[White "Deviprasath, Sharvesh"]
[Black "Djordjevic, Dejan N"]
[WhiteFideId "30938228"]
[BlackFideId "913316"]
[WhiteElo "2168"]
[BlackElo "2261"]
[Result "1-0"]
[Round "05"]
[TimeControl "180+2"]
[Date "2023.05.23"]
[WhiteClock "0:02:07"]
[BlackClock "0:01:04"]

1. e4 {[%clk 0:03:00]}  c5 {[%clk 0:02:59]} 2. Nc3 {[%clk 0:03:00]}  Nc6 {[%clk 0:02:59]} 3. Bb5 {[%clk 0:02:58]}  d6 {[%clk 0:02:57]} 4. d4 {[%clk 0:02:58]}  cxd4 {[%clk 0:02:57]} 5. Qxd4 {[%clk 0:02:59]}  Bd7 {[%clk 0:02:57]} 6. Bxc6 {[%clk 0:02:58]}  Bxc6 {[%clk 0:02:56]} 7. Nf3 {[%clk 0:02:59]}  Nf6 {[%clk 0:02:51]} 8. Bg5 {[%clk 0:02:59]}  a6 {[%clk 0:02:48]} 9. O-O-O {[%clk 0:02:55]}  Qa5 {[%clk 0:02:42]} 10. Rhe1 {[%clk 0:02:51]}  h6 {[%clk 0:02:07]} 11. e5 {[%clk 0:02:44]}  hxg5 {[%clk 0:01:54]} 12. exf6 {[%clk 0:02:23]}  gxf6 {[%clk 0:01:54]} 13. Qxf6 {[%clk 0:02:18]}  Bxf3 {[%clk 0:01:38]} 14. gxf3 {[%clk 0:02:12]}  Rxh2 {[%clk 0:01:04]} 15. Qxd6 {[%clk 0:02:07]} 1-0


[Site "https://www.chess.com"]

[Event "Titled Tuesday Blitz May 23 Late 2023"]
[White "Ognean, Mihnea-Ionut"]
[Black "Cagara, Paulina"]
[WhiteFideId "1232347"]
[BlackFideId "1124870"]
[WhiteElo "2215"]
[BlackElo "1967"]
[Result "1/2-1/2"]
[Round "05"]
[TimeControl "180+2"]
[Date "2023.05.23"]
[WhiteClock "0:00:06"]
[BlackClock "0:00:11"]

1. d4 {[%clk 0:02:46]}  f5 {[%clk 0:02:57]} 2. g3 {[%clk 0:02:43]}  g6 {[%clk 0:02:57]} 3. Bg2 {[%clk 0:02:44]}  Bg7 {[%clk 0:02:56]} 4. c4 {[%clk 0:02:42]}  c6 {[%clk 0:02:55]} 5. Nf3 {[%clk 0:02:36]}  Nf6 {[%clk 0:02:54]} 6. Nc3 {[%clk 0:02:31]}  O-O {[%clk 0:02:52]} 7. O-O {[%clk 0:02:31]}  d6 {[%clk 0:02:51]} 8. Re1 {[%clk 0:02:22]}  Na6 {[%clk 0:02:43]} 9. a3 {[%clk 0:02:20]}  Nc7 {[%clk 0:02:42]} 10. e4 {[%clk 0:02:20]}  e6 {[%clk 0:02:41]} 11. Qd3 {[%clk 0:02:08]}  d5 {[%clk 0:02:37]} 12. exd5 {[%clk 0:01:58]}  exd5 {[%clk 0:02:36]} 13. Bf4 {[%clk 0:01:55]}  dxc4 {[%clk 0:02:30]} 14. Qxc4+ {[%clk 0:01:56]}  Kh8 {[%clk 0:02:30]} 15. Rad1 {[%clk 0:01:34]}  Ncd5 {[%clk 0:02:28]} 16. Be5 {[%clk 0:01:34]}  Be6 {[%clk 0:02:18]} 17. Qd3 {[%clk 0:01:13]}  Bg8 {[%clk 0:02:15]} 18. Nd2 {[%clk 0:01:06]}  Qd7 {[%clk 0:02:09]} 19. Nc4 {[%clk 0:01:06]}  Rad8 {[%clk 0:02:05]} 20. Ne3 {[%clk 0:01:04]}  Nxe3 {[%clk 0:02:00]} 21. fxe3 {[%clk 0:00:59]}  Ng4 {[%clk 0:01:58]} 22. Bxg7+ {[%clk 0:00:57]}  Qxg7 {[%clk 0:01:57]} 23. h3 {[%clk 0:00:29]}  Nf6 {[%clk 0:01:55]} 24. e4 {[%clk 0:00:30]}  fxe4 {[%clk 0:01:54]} 25. Nxe4 {[%clk 0:00:31]}  Nxe4 {[%clk 0:01:46]} 26. Bxe4 {[%clk 0:00:32]}  Bd5 {[%clk 0:01:45]} 27. Kg2 {[%clk 0:00:28]}  a6 {[%clk 0:01:25]} 28. h4 {[%clk 0:00:28]}  Bxe4+ {[%clk 0:01:18]} 29. Qxe4 {[%clk 0:00:29]}  Rd5 {[%clk 0:01:17]} 30. Qe7 {[%clk 0:00:28]}  Rd7 {[%clk 0:01:12]} 31. Qxg7+ {[%clk 0:00:27]}  Kxg7 {[%clk 0:01:12]} 32. Re4 {[%clk 0:00:26]}  Rfd8 {[%clk 0:01:11]} 33. Rde1 {[%clk 0:00:26]}  Kf7 {[%clk 0:01:09]} 34. Kf3 {[%clk 0:00:25]}  b5 {[%clk 0:01:03]} 35. Re6 {[%clk 0:00:24]}  Rxd4 {[%clk 0:00:58]} 36. Rxc6 {[%clk 0:00:23]}  Rd3+ {[%clk 0:00:58]} 37. Kg4 {[%clk 0:00:23]}  R8d4+ {[%clk 0:00:54]} 38. Kh3 {[%clk 0:00:24]}  h5 {[%clk 0:00:46]} 39. Rc7+ {[%clk 0:00:16]}  Kf6 {[%clk 0:00:43]} 40. Rc6+ {[%clk 0:00:17]}  Rd6 {[%clk 0:00:37]} 41. Rec1 {[%clk 0:00:14]}  Kf5 {[%clk 0:00:34]} 42. R1c5+ {[%clk 0:00:13]}  Ke4 {[%clk 0:00:28]} 43. Rc8 {[%clk 0:00:13]}  Kf3 {[%clk 0:00:24]} 44. Rf8+ {[%clk 0:00:13]}  Ke2 {[%clk 0:00:24]} 45. Re5+ {[%clk 0:00:13]}  Kd2 {[%clk 0:00:24]} 46. Rf2+ {[%clk 0:00:12]}  Kc1 {[%clk 0:00:23]} 47. Ree2 {[%clk 0:00:11]}  Rd2 {[%clk 0:00:20]} 48. Re1+ {[%clk 0:00:05]}  Kc2 {[%clk 0:00:20]} 49. Rxd2+ {[%clk 0:00:05]}  Rxd2 {[%clk 0:00:19]} 50. Re6 {[%clk 0:00:05]}  Kxb2 {[%clk 0:00:19]} 51. Rxa6 {[%clk 0:00:06]}  Rd3 {[%clk 0:00:17]} 52. Rxg6 {[%clk 0:00:06]}  Kxa3 {[%clk 0:00:16]} 53. Rg5 {[%clk 0:00:06]}  b4 {[%clk 0:00:16]} 54. Rxh5 {[%clk 0:00:07]}  b3 {[%clk 0:00:17]} 55. Rb5 {[%clk 0:00:07]}  b2 {[%clk 0:00:16]} 56. Rxb2 {[%clk 0:00:08]}  Kxb2 {[%clk 0:00:16]} 57. Kg4 {[%clk 0:00:08]}  Kc3 {[%clk 0:00:16]} 58. Kf4 {[%clk 0:00:09]}  Kd4 {[%clk 0:00:16]} 59. h5 {[%clk 0:00:09]}  Rd2 {[%clk 0:00:16]} 60. g4 {[%clk 0:00:09]}  Rf2+ {[%clk 0:00:15]} 61. Kg5 {[%clk 0:00:09]}  Ke5 {[%clk 0:00:15]} 62. h6 {[%clk 0:00:10]}  Rh2 {[%clk 0:00:15]} 63. Kg6 {[%clk 0:00:10]}  Kf4 {[%clk 0:00:13]} 64. g5 {[%clk 0:00:11]}  Rh3 {[%clk 0:00:13]} 65. Kf6 {[%clk 0:00:10]}  Kg4 {[%clk 0:00:12]} 66. Kg7 {[%clk 0:00:05]}  Kxg5 {[%clk 0:00:11]} 67. h7 {[%clk 0:00:05]}  Kf5 {[%clk 0:00:11]} 68. h8=Q {[%clk 0:00:05]}  Rxh8 {[%clk 0:00:11]} 69. Kxh8 {[%clk 0:00:06]} 1/2-1/2


[Site "https://www.chess.com"]

[Event "Titled Tuesday Blitz May 23 Late 2023"]
[White "coquitovich"]
[Black "Janaszak, Dawid"]
[BlackFideId "1119206"]
[WhiteElo "2156"]
[BlackElo "2220"]
[Result "0-1"]
[Round "05"]
[TimeControl "180+2"]
[Date "2023.05.23"]
[WhiteClock "0:00:00"]
[BlackClock "0:00:30"]

1. Nf3 {[%clk 0:03:00]}  g6 {[%clk 0:02:54]} 2. e4 {[%clk 0:02:59]}  c5 {[%clk 0:02:50]} 3. d3 {[%clk 0:02:59]}  Bg7 {[%clk 0:02:50]} 4. g3 {[%clk 0:03:00]}  Nc6 {[%clk 0:02:50]} 5. Bg2 {[%clk 0:03:01]}  e5 {[%clk 0:02:49]} 6. O-O {[%clk 0:03:02]}  Nge7 {[%clk 0:02:49]} 7. c3 {[%clk 0:03:03]}  O-O {[%clk 0:02:49]} 8. Nh4 {[%clk 0:03:03]}  d6 {[%clk 0:02:48]} 9. f4 {[%clk 0:03:04]}  f5 {[%clk 0:02:49]} 10. Nd2 {[%clk 0:03:02]}  exf4 {[%clk 0:02:44]} 11. gxf4 {[%clk 0:03:02]}  Be6 {[%clk 0:02:36]} 12. Ndf3 {[%clk 0:03:02]}  Kh8 {[%clk 0:02:34]} 13. Ng5 {[%clk 0:03:00]}  Bg8 {[%clk 0:02:34]} 14. exf5 {[%clk 0:02:59]}  Nxf5 {[%clk 0:02:31]} 15. Nxf5 {[%clk 0:02:56]}  Rxf5 {[%clk 0:02:30]} 16. Be4 {[%clk 0:02:55]}  Ne7 {[%clk 0:02:18]} 17. Qf3 {[%clk 0:02:23]}  d5 {[%clk 0:02:16]} 18. Bxf5 {[%clk 0:02:21]}  Nxf5 {[%clk 0:02:17]} 19. Bd2 {[%clk 0:02:15]}  b5 {[%clk 0:02:16]} 20. Rae1 {[%clk 0:02:13]}  Qb6 {[%clk 0:02:10]} 21. Qh3 {[%clk 0:01:48]}  Rf8 {[%clk 0:02:02]} 22. Re6 {[%clk 0:01:42]}  Qd8 {[%clk 0:01:49]} 23. Rfe1 {[%clk 0:01:27]}  Bf6 {[%clk 0:01:42]} 24. Nf3 {[%clk 0:00:59]}  Bxe6 {[%clk 0:01:38]} 25. Rxe6 {[%clk 0:01:00]}  Re8 {[%clk 0:01:33]} 26. Re1 {[%clk 0:00:20]}  Rxe1+ {[%clk 0:01:27]} 27. Nxe1 {[%clk 0:00:20]}  b4 {[%clk 0:01:24]} 28. Qf3 {[%clk 0:00:20]}  Qd6 {[%clk 0:01:23]} 29. Nc2 {[%clk 0:00:17]}  a5 {[%clk 0:01:22]} 30. Ne3 {[%clk 0:00:17]}  bxc3 {[%clk 0:01:07]} 31. bxc3 {[%clk 0:00:15]}  Ne7 {[%clk 0:01:04]} 32. Ng4 {[%clk 0:00:14]}  Bg7 {[%clk 0:00:59]} 33. Qe2 {[%clk 0:00:14]}  h6 {[%clk 0:00:52]} 34. Ne5 {[%clk 0:00:14]}  Kh7 {[%clk 0:00:51]} 35. d4 {[%clk 0:00:11]}  a4 {[%clk 0:00:48]} 36. Be3 {[%clk 0:00:08]}  c4 {[%clk 0:00:48]} 37. Qg4 {[%clk 0:00:07]}  Qa3 {[%clk 0:00:39]} 38. Qe6 {[%clk 0:00:04]}  Qxc3 {[%clk 0:00:35]} 39. Qxe7 {[%clk 0:00:03]}  Qxe3+ {[%clk 0:00:35]} 40. Kg2 {[%clk 0:00:04]}  Qxf4 {[%clk 0:00:29]} 41. Qe6 {[%clk 0:00:03]}  Qe4+ {[%clk 0:00:29]} 42. Kf1 {[%clk 0:00:00]}  c3 {[%clk 0:00:30]} 0-1


[Site "https://www.chess.com"]

[Event "Titled Tuesday Blitz May 23 Late 2023"]
[White "Sailer, Mike"]
[Black "Cruz Mendez, Jean Marco"]
[WhiteFideId "2012901"]
[BlackFideId "3526402"]
[WhiteElo "2109"]
[BlackElo "2064"]
[Result "0-1"]
[Round "05"]
[TimeControl "180+2"]
[Date "2023.05.23"]
[WhiteClock "0:01:47"]
[BlackClock "0:02:02"]

1. d4 {[%clk 0:02:39]}  Nf6 {[%clk 0:02:54]} 2. Bg5 {[%clk 0:02:39]}  Ne4 {[%clk 0:02:53]} 3. Bf4 {[%clk 0:02:39]}  c5 {[%clk 0:02:54]} 4. f3 {[%clk 0:02:37]}  Qa5+ {[%clk 0:02:54]} 5. c3 {[%clk 0:02:38]}  Nf6 {[%clk 0:02:55]} 6. d5 {[%clk 0:02:38]}  d6 {[%clk 0:02:55]} 7. e4 {[%clk 0:02:36]}  e5 {[%clk 0:02:53]} 8. dxe6 {[%clk 0:02:23]}  Bxe6 {[%clk 0:02:44]} 9. Na3 {[%clk 0:02:13]}  Be7 {[%clk 0:02:21]} 10. Bb5+ {[%clk 0:02:13]}  Nc6 {[%clk 0:02:10]} 11. Bxc6+ {[%clk 0:02:05]}  bxc6 {[%clk 0:02:11]} 12. Nc4 {[%clk 0:01:47]}  Bxc4 {[%clk 0:02:02]} 0-1


[Site "https://www.chess.com"]

[Event "Titled Tuesday Blitz May 23 Late 2023"]
[White "Fishbein, Alexander"]
[Black "zsizsi99"]
[WhiteFideId "2000377"]
[WhiteElo "2415"]
[BlackElo "2408"]
[Result "1-0"]
[Round "05"]
[TimeControl "180+2"]
[Date "2023.05.23"]
[WhiteClock "0:00:19"]
[BlackClock "0:00:00"]

1. d4 {[%clk 0:03:00]}  Nf6 {[%clk 0:02:50]} 2. c4 {[%clk 0:02:59]}  c5 {[%clk 0:02:48]} 3. d5 {[%clk 0:02:58]}  b5 {[%clk 0:02:48]} 4. cxb5 {[%clk 0:02:51]}  a6 {[%clk 0:02:49]} 5. b6 {[%clk 0:02:49]}  e6 {[%clk 0:02:47]} 6. Nc3 {[%clk 0:02:46]}  exd5 {[%clk 0:02:36]} 7. Nxd5 {[%clk 0:02:45]}  Nxd5 {[%clk 0:02:36]} 8. Qxd5 {[%clk 0:02:44]}  Nc6 {[%clk 0:02:36]} 9. e3 {[%clk 0:02:27]}  Be7 {[%clk 0:02:31]} 10. Nf3 {[%clk 0:02:25]}  Qxb6 {[%clk 0:02:28]} 11. Bc4 {[%clk 0:02:23]}  O-O {[%clk 0:02:27]} 12. O-O {[%clk 0:02:22]}  d6 {[%clk 0:02:09]} 13. Qh5 {[%clk 0:02:14]}  g6 {[%clk 0:01:50]} 14. Qh6 {[%clk 0:02:11]}  Na5 {[%clk 0:01:49]} 15. Bd5 {[%clk 0:01:53]}  Bb7 {[%clk 0:01:46]} 16. e4 {[%clk 0:01:46]}  Bxd5 {[%clk 0:01:41]} 17. exd5 {[%clk 0:01:47]}  Nc4 {[%clk 0:01:35]} 18. b3 {[%clk 0:01:33]}  Ne5 {[%clk 0:01:34]} 19. Nxe5 {[%clk 0:01:31]}  dxe5 {[%clk 0:01:31]} 20. Bb2 {[%clk 0:01:31]}  Bf6 {[%clk 0:01:21]} 21. Rac1 {[%clk 0:01:26]}  a5 {[%clk 0:00:51]} 22. Qe3 {[%clk 0:01:10]}  a4 {[%clk 0:00:50]} 23. Qxc5 {[%clk 0:01:03]}  Rfb8 {[%clk 0:00:39]} 24. Qxb6 {[%clk 0:00:54]}  Rxb6 {[%clk 0:00:40]} 25. Rc6 {[%clk 0:00:53]}  Raa6 {[%clk 0:00:17]} 26. Rfc1 {[%clk 0:00:44]}  Kg7 {[%clk 0:00:15]} 27. g4 {[%clk 0:00:35]}  h6 {[%clk 0:00:13]} 28. h4 {[%clk 0:00:34]}  axb3 {[%clk 0:00:12]} 29. axb3 {[%clk 0:00:30]}  g5 {[%clk 0:00:04]} 30. hxg5 {[%clk 0:00:29]}  hxg5 {[%clk 0:00:05]} 31. b4 {[%clk 0:00:24]}  Rxc6 {[%clk 0:00:04]} 32. dxc6 {[%clk 0:00:23]}  Ra8 {[%clk 0:00:01]} 33. b5 {[%clk 0:00:22]}  Kf8 {[%clk 0:00:01]} 34. b6 {[%clk 0:00:22]}  Ra2 {[%clk 0:00:01]} 35. c7 {[%clk 0:00:20]}  Rxb2 {[%clk 0:00:02]} 36. c8=Q+ {[%clk 0:00:20]}  Kg7 {[%clk 0:00:02]} 37. b7 {[%clk 0:00:19]}  e4 {[%clk 0:00:00]} 38. b8=Q {[%clk 0:00:19]} 1-0


[Site "https://www.chess.com"]

[Event "Titled Tuesday Blitz May 23 Late 2023"]
[White "StarkyNZ"]
[Black "Estrada Nieto, Julian"]
[BlackFideId "5101018"]
[WhiteElo "2348"]
[BlackElo "2161"]
[Result "1-0"]
[Round "05"]
[TimeControl "180+2"]
[Date "2023.05.23"]
[WhiteClock "0:00:27"]
[BlackClock "0:00:17"]

1. c4 {[%clk 0:03:00]}  e5 {[%clk 0:02:59]} 2. Nc3 {[%clk 0:02:58]}  Nf6 {[%clk 0:02:58]} 3. g3 {[%clk 0:02:57]}  d5 {[%clk 0:02:58]} 4. cxd5 {[%clk 0:02:58]}  Nxd5 {[%clk 0:02:58]} 5. Bg2 {[%clk 0:02:58]}  Nb6 {[%clk 0:02:59]} 6. Nf3 {[%clk 0:02:57]}  Nc6 {[%clk 0:02:59]} 7. O-O {[%clk 0:02:57]}  Be7 {[%clk 0:02:59]} 8. d3 {[%clk 0:02:58]}  O-O {[%clk 0:02:59]} 9. a3 {[%clk 0:02:57]}  a5 {[%clk 0:02:57]} 10. Be3 {[%clk 0:02:54]}  Re8 {[%clk 0:02:56]} 11. Rc1 {[%clk 0:02:54]}  Bf8 {[%clk 0:02:56]} 12. Nb5 {[%clk 0:02:52]}  Nd5 {[%clk 0:02:53]} 13. Bc5 {[%clk 0:02:51]}  Bg4 {[%clk 0:02:49]} 14. h3 {[%clk 0:02:50]}  Bh5 {[%clk 0:02:48]} 15. Qb3 {[%clk 0:02:42]}  a4 {[%clk 0:02:39]} 16. Qa2 {[%clk 0:02:34]}  Ra5 {[%clk 0:02:24]} 17. Bxf8 {[%clk 0:02:14]}  Rxb5 {[%clk 0:02:16]} 18. Bc5 {[%clk 0:02:13]}  b6 {[%clk 0:02:02]} 19. Nd2 {[%clk 0:01:33]}  Nce7 {[%clk 0:01:50]} 20. Bxe7 {[%clk 0:01:32]}  Nxe7 {[%clk 0:01:34]} 21. g4 {[%clk 0:01:30]}  Bg6 {[%clk 0:01:33]} 22. Ne4 {[%clk 0:01:20]}  Nd5 {[%clk 0:01:24]} 23. Nc3 {[%clk 0:01:21]}  Nxc3 {[%clk 0:01:24]} 24. Rxc3 {[%clk 0:01:21]}  c5 {[%clk 0:01:17]} 25. Bc6 {[%clk 0:01:20]}  Ra5 {[%clk 0:01:11]} 26. Bxe8 {[%clk 0:01:21]}  Qxe8 {[%clk 0:01:12]} 27. Qd5 {[%clk 0:01:19]}  Kh8 {[%clk 0:01:08]} 28. e4 {[%clk 0:01:08]}  f6 {[%clk 0:01:05]} 29. f4 {[%clk 0:01:06]}  exf4 {[%clk 0:01:03]} 30. Rxf4 {[%clk 0:01:06]}  Bf7 {[%clk 0:01:00]} 31. Qb7 {[%clk 0:01:04]}  Rb5 {[%clk 0:00:57]} 32. Rf2 {[%clk 0:00:52]}  h6 {[%clk 0:00:55]} 33. Qc7 {[%clk 0:00:50]}  Qe6 {[%clk 0:00:40]} 34. e5 {[%clk 0:00:44]}  fxe5 {[%clk 0:00:34]} 35. Qxf7 {[%clk 0:00:42]}  Qxf7 {[%clk 0:00:33]} 36. Rxf7 {[%clk 0:00:42]}  Rxb2 {[%clk 0:00:34]} 37. Ra7 {[%clk 0:00:38]}  b5 {[%clk 0:00:26]} 38. Rxc5 {[%clk 0:00:36]}  Rb3 {[%clk 0:00:26]} 39. Rxe5 {[%clk 0:00:35]}  Rxd3 {[%clk 0:00:22]} 40. Rxb5 {[%clk 0:00:32]}  Rxa3 {[%clk 0:00:22]} 41. Kg2 {[%clk 0:00:28]}  Ra2+ {[%clk 0:00:20]} 42. Kg3 {[%clk 0:00:29]}  a3 {[%clk 0:00:20]} 43. Rb8+ {[%clk 0:00:28]}  Kh7 {[%clk 0:00:20]} 44. Rbb7 {[%clk 0:00:29]}  Kg6 {[%clk 0:00:20]} 45. Rxg7+ {[%clk 0:00:29]}  Kf6 {[%clk 0:00:21]} 46. Rh7 {[%clk 0:00:27]}  Kg6 {[%clk 0:00:19]} 47. Rhb7 {[%clk 0:00:25]}  Ra1 {[%clk 0:00:19]} 48. Rb6+ {[%clk 0:00:26]}  Kg5 {[%clk 0:00:17]} 49. Ra5# {[%clk 0:00:27]} 1-0


[Site "https://www.chess.com"]

[Event "Titled Tuesday Blitz May 23 Late 2023"]
[White "Rose, Felix"]
[Black "Bruedigam, Martin"]
[WhiteFideId "5105722"]
[BlackFideId "24608033"]
[WhiteElo "2039"]
[BlackElo "2331"]
[Result "1-0"]
[Round "05"]
[TimeControl "180+2"]
[Date "2023.05.23"]
[WhiteClock "0:00:04"]
[BlackClock "0:00:00"]

1. e4 {[%clk 0:03:00]}  c6 {[%clk 0:03:00]} 2. d4 {[%clk 0:03:00]}  d5 {[%clk 0:03:00]} 3. e5 {[%clk 0:03:00]}  Bf5 {[%clk 0:03:00]} 4. h4 {[%clk 0:03:01]}  h5 {[%clk 0:02:57]} 5. Bd3 {[%clk 0:03:01]}  Bxd3 {[%clk 0:02:56]} 6. Qxd3 {[%clk 0:03:02]}  e6 {[%clk 0:02:57]} 7. Bg5 {[%clk 0:03:02]}  Be7 {[%clk 0:02:54]} 8. Nf3 {[%clk 0:03:02]}  Nd7 {[%clk 0:02:45]} 9. O-O {[%clk 0:02:53]}  Nh6 {[%clk 0:02:42]} 10. Nc3 {[%clk 0:02:51]}  Nf5 {[%clk 0:02:42]} 11. g3 {[%clk 0:02:37]}  Qb6 {[%clk 0:02:38]} 12. Bxe7 {[%clk 0:02:35]}  Nxe7 {[%clk 0:02:36]} 13. Ne2 {[%clk 0:02:34]}  Nf5 {[%clk 0:02:32]} 14. a4 {[%clk 0:02:10]}  a5 {[%clk 0:02:30]} 15. c3 {[%clk 0:02:04]}  g6 {[%clk 0:02:26]} 16. b4 {[%clk 0:01:50]}  Kf8 {[%clk 0:02:13]} 17. Rfb1 {[%clk 0:01:47]}  Qc7 {[%clk 0:02:10]} 18. c4 {[%clk 0:01:39]}  dxc4 {[%clk 0:02:02]} 19. Qxc4 {[%clk 0:01:39]}  Kg7 {[%clk 0:02:02]} 20. Nf4 {[%clk 0:01:35]}  axb4 {[%clk 0:02:00]} 21. Rxb4 {[%clk 0:01:25]}  Rhc8 {[%clk 0:01:31]} 22. Ng5 {[%clk 0:01:13]}  Nf8 {[%clk 0:01:30]} 23. Rab1 {[%clk 0:00:59]}  Ra7 {[%clk 0:01:30]} 24. a5 {[%clk 0:00:51]}  Qd7 {[%clk 0:01:09]} 25. Rb6 {[%clk 0:00:42]}  Rc7 {[%clk 0:01:00]} 26. Qc5 {[%clk 0:00:13]}  Qxd4 {[%clk 0:00:30]} 27. Qa3 {[%clk 0:00:09]}  Qxe5 {[%clk 0:00:24]} 28. a6 {[%clk 0:00:09]}  Rxa6 {[%clk 0:00:22]} 29. Rxa6 {[%clk 0:00:09]}  bxa6 {[%clk 0:00:22]} 30. Qxa6 {[%clk 0:00:10]}  c5 {[%clk 0:00:17]} 31. Qb6 {[%clk 0:00:10]}  c4 {[%clk 0:00:16]} 32. Rc1 {[%clk 0:00:10]}  c3 {[%clk 0:00:15]} 33. Qb3 {[%clk 0:00:09]}  Nd4 {[%clk 0:00:09]} 34. Qa3 {[%clk 0:00:07]}  Ne2+ {[%clk 0:00:08]} 35. Nxe2 {[%clk 0:00:08]}  Qxe2 {[%clk 0:00:09]} 36. Kg2 {[%clk 0:00:07]}  Qe5 {[%clk 0:00:09]} 37. Nf3 {[%clk 0:00:06]}  Qf6 {[%clk 0:00:08]} 38. Rc2 {[%clk 0:00:06]}  Rc6 {[%clk 0:00:05]} 39. Qc1 {[%clk 0:00:06]}  Nd7 {[%clk 0:00:04]} 40. Ng5 {[%clk 0:00:06]}  Ne5 {[%clk 0:00:04]} 41. Ne4 {[%clk 0:00:06]}  Qf5 {[%clk 0:00:04]} 42. Nxc3 {[%clk 0:00:06]}  Ng4 {[%clk 0:00:03]} 43. Qd2 {[%clk 0:00:05]}  Qe5 {[%clk 0:00:02]} 44. Ne2 {[%clk 0:00:04]}  Rc3 {[%clk 0:00:00]} 45. Rxc3 {[%clk 0:00:04]} 1-0


[Site "https://www.chess.com"]

[Event "Titled Tuesday Blitz May 23 Late 2023"]
[White "Machidon, Cristi"]
[Black "Pace, Christopher"]
[WhiteFideId "13904590"]
[BlackFideId "2610167"]
[WhiteElo "2355"]
[BlackElo "2290"]
[Result "1-0"]
[Round "05"]
[TimeControl "180+2"]
[Date "2023.05.23"]
[WhiteClock "0:00:32"]
[BlackClock "0:00:00"]

1. e4 {[%clk 0:02:56]}  e5 {[%clk 0:02:59]} 2. Nf3 {[%clk 0:02:55]}  Nc6 {[%clk 0:02:59]} 3. Bb5 {[%clk 0:02:54]}  Nge7 {[%clk 0:02:50]} 4. O-O {[%clk 0:02:50]}  g6 {[%clk 0:02:49]} 5. c3 {[%clk 0:02:50]}  Bg7 {[%clk 0:02:48]} 6. d4 {[%clk 0:02:49]}  exd4 {[%clk 0:02:49]} 7. cxd4 {[%clk 0:02:49]}  d5 {[%clk 0:02:50]} 8. exd5 {[%clk 0:02:43]}  Nxd5 {[%clk 0:02:50]} 9. Re1+ {[%clk 0:02:42]}  Be6 {[%clk 0:02:41]} 10. Bg5 {[%clk 0:02:40]}  Qd6 {[%clk 0:02:40]} 11. Nbd2 {[%clk 0:02:39]}  O-O {[%clk 0:02:21]} 12. Ne4 {[%clk 0:02:39]}  Qb4 {[%clk 0:02:07]} 13. Bxc6 {[%clk 0:02:38]}  bxc6 {[%clk 0:02:08]} 14. b3 {[%clk 0:02:38]}  Bg4 {[%clk 0:01:17]} 15. h3 {[%clk 0:02:37]}  Bxf3 {[%clk 0:01:14]} 16. Qxf3 {[%clk 0:02:38]}  Qxd4 {[%clk 0:01:15]} 17. Rad1 {[%clk 0:02:32]}  Qb4 {[%clk 0:00:46]} 18. Bd2 {[%clk 0:01:30]}  Qa3 {[%clk 0:00:46]} 19. Rc1 {[%clk 0:01:27]}  Qxa2 {[%clk 0:00:30]} 20. Rxc6 {[%clk 0:01:27]}  f5 {[%clk 0:00:27]} 21. Ng5 {[%clk 0:01:24]}  Qxd2 {[%clk 0:00:27]} 22. Rec1 {[%clk 0:00:48]}  Qxg5 {[%clk 0:00:23]} 23. Qxd5+ {[%clk 0:00:48]}  Kh8 {[%clk 0:00:23]} 24. Rxc7 {[%clk 0:00:49]}  Rad8 {[%clk 0:00:17]} 25. Qb7 {[%clk 0:00:48]}  Rg8 {[%clk 0:00:15]} 26. Qxa7 {[%clk 0:00:44]}  Qf6 {[%clk 0:00:11]} 27. Re1 {[%clk 0:00:43]}  Qd4 {[%clk 0:00:10]} 28. Qb7 {[%clk 0:00:37]}  Rd6 {[%clk 0:00:07]} 29. Ree7 {[%clk 0:00:34]}  Qa1+ {[%clk 0:00:04]} 30. Kh2 {[%clk 0:00:33]}  Qf6 {[%clk 0:00:02]} 31. Rf7 {[%clk 0:00:33]}  Qe5+ {[%clk 0:00:01]} 32. g3 {[%clk 0:00:33]}  Rd2 {[%clk 0:00:00]} 33. Kg2 {[%clk 0:00:32]} 1-0


[Site "https://www.chess.com"]